fUST/lending_fUST_20250905
["ID","MTS","AMOUNT","RATE_DAILY","PERIOD"]
[383607239,1757028640244,-480.0,0.00015649,2]
[383607240,1757028640254,-480.0,0.00015649,2]
[383607241,1757028640264,-480.0,0.00015649,2]
[383607242,1757028640274,-480.0,0.00015649,2]
[383607244,1757028640284,-480.0,0.00015649,2]
[383607245,1757028640294,-480.0,0.00015649,2]
[383607246,1757028640304,-480.0,0.00015649,2]
[383607247,1757028640314,-480.0,0.00015649,2]
[383607248,1757028640325,-480.44560732,0.00015649,2]
[383607249,1757028640335,-480.0,0.00015649,2]
[383607250,1757028640345,-480.0,0.00015649,2]
[383607251,1757028640355,-480.73411835,0.00015649,2]
[383607252,1757028640364,-480.0,0.00015649,2]
[383607253,1757028640373,-480.0,0.00015649,2]
[383607254,1757028640383,-480.0,0.00015649,2]
[383607255,1757028640392,-480.0,0.00015649,2]
[383607257,1757028640402,-480.0,0.00015649,2]
[383607259,1757028640412,-480.0,0.00015649,2]
[383607261,1757028640422,-480.0,0.00015649,2]
[383607263,1757028640431,-480.0,0.00015649,2]
[383607265,1757028640441,-208.32049847,0.00015649,2]
[383607267,1757028640450,-373.04717275,0.00015649,2]
[383607269,1757028640460,-480.0,0.00015649,2]
[383607271,1757028640469,-480.0,0.00015649,2]
[383607273,1757028640478,-480.0,0.00015649,2]
[383607274,1757028640488,-480.0,0.00015649,2]
[383607276,1757028640497,-480.0,0.00015649,2]
[383607278,1757028640507,-480.0,0.00015649,2]
[383607280,1757028640516,-485.78196266,0.00015649,2]
[383607282,1757028640526,-480.0,0.00015649,2]
[383607284,1757028640536,-480.0,0.00015649,2]
[383607286,1757028640546,-480.0,0.00015649,2]
[383607288,1757028640555,-480.0,0.00015649,2]
[383607290,1757028640564,-480.0,0.00015649,2]
[383607292,1757028640574,-480.0,0.00015649,2]
[383607294,1757028640583,-481.02390499,0.00015649,2]
[383607296,1757028640592,-480.0,0.00015649,2]
[383607299,1757028640604,-480.0,0.00015649,2]
[383607302,1757028640613,-249.64307821,0.00015649,2]
[383607304,1757028640622,-480.0,0.00015649,2]
[383607306,1757028640632,-480.0,0.00015649,2]
[383607308,1757028640641,-480.7210916,0.00015649,2]
[383607310,1757028640651,-480.25529325,0.00015649,2]
[383607312,1757028640661,-480.0,0.00015649,2]
[383607314,1757028640671,-480.0,0.00015649,2]
[383607316,1757028640686,-480.0,0.00015649,2]
[383607318,1757028640696,-481.28218176,0.00015649,2]
[383607320,1757028640705,-480.0,0.00015649,2]
[383607322,1757028640715,-463.40787608,0.00015649,2]
[383607324,1757028640724,-480.0,0.00015649,2]
[383607326,1757028640734,-500.0,0.00015649,2]
[383607328,1757028640743,-500.0,0.00015649,2]
[383607330,1757028640753,-500.0,0.00015649,2]
[383607332,1757028640763,-500.0,0.00015649,2]
[383607334,1757028640772,-480.0,0.00015649,2]
[383607336,1757028640782,-480.0,0.00015649,2]
[383607338,1757028640791,-480.0,0.00015649,2]
[383607340,1757028640801,-480.0,0.00015649,2]
[383607342,1757028640812,-484.81565405,0.00015649,2]
[383607344,1757028640821,-480.0,0.00015649,2]
[383607346,1757028640831,-480.0,0.00015649,2]
[383607348,1757028640840,-480.0,0.00015649,2]
[383607350,1757028640852,-480.0,0.00015649,2]
[383607352,1757028640862,-480.0,0.00015649,2]
[383607354,1757028640871,-480.0,0.00015649,2]
[383607356,1757028640881,-480.0,0.00015649,2]
[383607358,1757028640890,-480.0,0.00015649,2]
[383607360,1757028640900,-482.77117779,0.00015649,2]
[383607362,1757028640909,-480.0,0.00015649,2]
[383607364,1757028640919,-480.0,0.00015649,2]
[383607366,1757028640930,-480.0,0.00015649,2]
[383607368,1757028640940,-519.71,0.00015649,2]
[383607370,1757028640949,-480.0,0.00015649,2]
[383607372,1757028640959,-153.16349277,0.00015649,2]
[383607374,1757028640969,-518.21017361,0.00015649,2]
[383607376,1757028640978,-480.0,0.00015649,2]
[383607378,1757028640987,-567.37918417,0.00015649,2]
[383607380,1757028640997,-480.0,0.00015649,2]
[383607382,1757028641007,-480.0,0.00015649,2]
[383607384,1757028641016,-480.0,0.00015649,2]
[383607386,1757028641025,-482.04704976,0.00015649,2]
[383607388,1757028641034,-461.53925618,0.00015649,2]
[383607390,1757028641044,-480.0,0.00015649,2]
[383607392,1757028641053,-480.0,0.00015649,2]
[383607394,1757028641063,-480.0,0.00015649,2]
[383607396,1757028641073,-480.0,0.00015649,2]
[383607398,1757028641082,-151.0,0.00015649,2]
[383607409,1757028641187,-480.0,0.00015649,2]
[383607411,1757028641215,-480.0,0.00015649,2]
[383607412,1757028641225,-500.0,0.0001565,2]
[383607413,1757028641234,-554.32,0.00015651,2]
[383607414,1757028641244,-163.81908211,0.00015651,2]
[383607415,1757028641253,-514.12,0.00015651,2]
[383607416,1757028641263,-480.0,0.00015651,2]
[383607417,1757028641272,-555.53,0.00015651,2]
[383607418,1757028641281,-480.0,0.00015651,2]
[383607419,1757028641291,-187.69223325,0.00015651,2]
[383607420,1757028641300,-480.0,0.00015651,2]
[383607421,1757028641309,-234.70078661,0.00015651,2]
[383607422,1757028641319,-480.0,0.00015651,2]
[383607423,1757028641328,-151.0,0.00015651,2]
[383607424,1757028641338,-151.0,0.00015651,2]
[383607425,1757028641347,-480.0,0.00015651,2]
[383607426,1757028641356,-480.0,0.00015651,2]
[383607427,1757028641366,-480.0,0.00015651,2]
[383607428,1757028641376,-151.0,0.00015651,2]
[383607429,1757028641385,-151.0,0.00015651,2]
[383607430,1757028641395,-500.0,0.00015651,2]
[383607431,1757028641404,-1000.0,0.00015652,2]
[383607432,1757028641414,-1000.0,0.00015652,2]
[383607433,1757028641424,-1000.0,0.00015652,2]
[383607434,1757028641436,-1000.0,0.00015652,2]
[383607435,1757028641446,-1000.0,0.00015652,2]
[383607436,1757028641456,-500.0,0.00015652,2]
[383607437,1757028641465,-500.0,0.00015652,2]
[383607438,1757028641475,-500.0,0.00015652,2]
[383607439,1757028641484,-181.157472,0.00015652,2]
[383607440,1757028641493,-500.0,0.00015652,2]
[383607441,1757028641503,-151.0,0.00015653,2]
[383607442,1757028641513,-480.0,0.00015653,2]
[383607443,1757028641523,-480.0,0.00015653,2]
[383607444,1757028641532,-151.0,0.00015653,2]
[383607445,1757028641542,-151.0,0.00015653,2]
[383607446,1757028641551,-151.0,0.00015653,2]
[383607447,1757028641560,-151.0,0.00015653,2]
[383607448,1757028641570,-175.541387,0.00015655,2]
[383607449,1757028641579,-500.0,0.00015657,2]
[383607450,1757028641588,-500.0,0.00015673,2]
[383607451,1757028641598,-500.0,0.00015673,2]
[383607452,1757028641607,-480.0,0.00015918,2]
[383607453,1757028641616,-480.0,0.00015918,2]
[383607454,1757028641626,-480.0,0.00015918,2]
[383607455,1757028641636,-480.0,0.00015918,2]
[383607456,1757028641647,-480.0,0.00015918,2]
[383607457,1757028641658,-541.52,0.00015918,2]
[383607458,1757028641668,-480.0,0.00015918,2]
[383607459,1757028641680,-480.0,0.00015918,2]
[383607460,1757028641691,-480.0,0.00015918,2]
[383607461,1757028641702,-480.0,0.00015918,2]
[383607462,1757028641712,-480.0,0.00015918,2]
[383607463,1757028641722,-480.0,0.0001592,2]
[383607464,1757028641732,-480.0,0.0001592,2]
[383607465,1757028641742,-480.0,0.0001592,2]
[383607466,1757028641753,-480.0,0.0001592,2]
[383607467,1757028641764,-480.0,0.0001592,2]
[383607468,1757028641773,-480.0,0.0001592,2]
[383607469,1757028641783,-480.0,0.0001592,2]
[383607470,1757028641792,-480.0,0.0001592,2]
[383607471,1757028641801,-480.0,0.0001592,2]
[383607472,1757028641811,-480.0,0.0001592,2]
[383607473,1757028641822,-480.0,0.0001592,2]
[383607474,1757028641831,-985.01,0.0001592,2]
[383607475,1757028641840,-573.9,0.0001592,2]
[383607476,1757028641851,-488.69,0.0001592,2]
[383607477,1757028641860,-480.0,0.0001592,2]
[383607478,1757028641870,-480.0,0.0001592,2]
[383607479,1757028641879,-480.0,0.0001592,2]
[383607480,1757028641888,-555.45,0.0001592,2]
[383607481,1757028641898,-480.0,0.00015921,2]
[383607482,1757028641909,-480.0,0.00015921,2]
[383607483,1757028641919,-480.0,0.00015921,2]
[383607484,1757028641928,-480.0,0.00015921,2]
[383607485,1757028641937,-480.0,0.00015921,2]
[383607486,1757028641947,-480.0,0.00015921,2]
[383607487,1757028641956,-480.0,0.00015921,2]
[383607488,1757028641967,-166.81,0.00015921,2]
[383607489,1757028641977,-480.0,0.00015921,2]
[383607490,1757028641987,-293.34439729,0.00015921,2]
[383607491,1757028641996,-648.31,0.00015921,2]
[383607492,1757028642005,-180.98794671,0.00015921,2]
[383607493,1757028642015,-480.0,0.00015921,2]
[383607494,1757028642025,-271.25,0.00015921,2]
[383607495,1757028642034,-480.0,0.00015921,2]
[383607496,1757028642043,-573.91,0.00015921,2]
[383607497,1757028642053,-480.0,0.00015921,2]
[383607498,1757028642062,-480.0,0.00015921,2]
[383607499,1757028642074,-480.0,0.00015921,2]
[383607500,1757028642083,-480.0,0.00015921,2]
[383607501,1757028642093,-480.0,0.00015921,2]
[383607502,1757028642103,-480.0,0.00015921,2]
[383607503,1757028642112,-480.0,0.00015921,2]
[383607504,1757028642122,-597.66,0.00015921,2]
[383607505,1757028642131,-480.0,0.00015923,2]
[383607506,1757028642140,-409.78,0.00015923,2]
[383607507,1757028642150,-490.11,0.00015923,2]
[383607508,1757028642160,-480.0,0.00015923,2]
[383607509,1757028642169,-480.0,0.00015923,2]
[383607510,1757028642178,-480.0,0.00015923,2]
[383607511,1757028642188,-530.99,0.00015923,2]
[383607512,1757028642197,-480.0,0.00015923,2]
[383607513,1757028642207,-480.0,0.00015923,2]
[383607514,1757028642216,-480.0,0.00015923,2]
[383607515,1757028642226,-334.51292463,0.00015923,2]
[383607516,1757028642236,-559.21,0.00015923,2]
[383607517,1757028642245,-480.0,0.00015923,2]
[383607518,1757028642255,-480.0,0.00015923,2]
[383607519,1757028642264,-480.0,0.00015923,2]
[383607520,1757028642274,-480.0,0.00015923,2]
[383607521,1757028642283,-480.0,0.00015923,2]
[383607522,1757028642292,-480.0,0.00015923,2]
[383607523,1757028642302,-480.0,0.00015923,2]
[383607524,1757028642311,-480.0,0.00015923,2]
[383607525,1757028642322,-480.0,0.00015923,2]
[383607526,1757028642331,-480.0,0.00015923,2]
[383607527,1757028642341,-480.0,0.00015925,2]
[383607528,1757028642351,-480.0,0.00015925,2]
[383607529,1757028642360,-480.0,0.00015927,2]
[383607530,1757028642370,-500.0,0.00015928,2]
[383607531,1757028642379,-28339.57942594,0.00016094,2]
[383607532,1757028642388,-151.0,0.00016094,2]
[383607533,1757028642398,-4984.42585413,0.000161,2]
[383607534,1757028642408,-480.0,0.00016192,2]
[383607535,1757028642417,-480.0,0.00016192,2]
[383607536,1757028642427,-480.0,0.00016192,2]
[383607537,1757028642436,-480.0,0.00016192,2]
[383607538,1757028642446,-480.0,0.00016192,2]
[383607539,1757028642455,-480.0,0.00016192,2]
[383607540,1757028642464,-480.0,0.00016192,2]
[383607541,1757028642473,-480.0,0.00016192,2]
[383607542,1757028642483,-480.0,0.00016192,2]
[383607543,1757028642492,-480.0,0.00016194,2]
[383607544,1757028642501,-480.0,0.00016194,2]
[383607545,1757028642511,-480.0,0.00016194,2]
[383607546,1757028642520,-480.0,0.00016194,2]
[383607547,1757028642529,-480.0,0.00016194,2]
[383607548,1757028642539,-480.0,0.00016194,2]
[383607549,1757028642548,-480.0,0.00016194,2]
[383607550,1757028642558,-480.0,0.00016194,2]
[383607551,1757028642568,-985.01,0.00016194,2]
[383607552,1757028642577,-488.69,0.00016194,2]
[383607553,1757028642587,-480.0,0.00016194,2]
[383607554,1757028642596,-480.0,0.00016194,2]
[383607555,1757028642607,-555.45,0.00016194,2]
[383607556,1757028642616,-481.24843507,0.00016195,2]
[383607558,1757028642625,-312.8,0.00016195,2]
[383607559,1757028642635,-480.0,0.00016195,2]
[383607560,1757028642644,-480.0,0.00016195,2]
[383607561,1757028642654,-480.0,0.00016195,2]
[383607562,1757028642663,-648.31,0.00016195,2]
[383607563,1757028642673,-480.0,0.00016195,2]
[383607564,1757028642685,-480.0,0.00016195,2]
[383607565,1757028642694,-573.91,0.00016195,2]
[383607566,1757028642704,-480.0,0.00016195,2]
[383607567,1757028642713,-480.0,0.00016195,2]
[383607569,1757028642724,-287.95626978,0.00016195,2]
[383607571,1757028642733,-480.0,0.00016195,2]
[383607572,1757028642743,-480.0,0.00016195,2]
[383607573,1757028642752,-480.0,0.00016195,2]
[383607574,1757028642762,-480.0,0.00016195,2]
[383607575,1757028642771,-597.66,0.00016195,2]
[383607576,1757028642781,-480.0,0.00016197,2]
[383607577,1757028642792,-151.0,0.00016197,2]
[383607578,1757028642801,-480.0,0.00016197,2]
[383607579,1757028642811,-554.467478,0.00016197,2]
[383607580,1757028642820,-480.0,0.00016197,2]
[383607581,1757028642830,-480.0,0.00016199,2]
[383607582,1757028642839,-480.0,0.00016201,2]
[383607583,1757028642849,-1000.0,0.00016221,2]
[383607584,1757028642858,-1000.0,0.00016221,2]
[383607585,1757028642868,-500.0,0.00016238,2]
[383607586,1757028642877,-500.0,0.00016244,2]
[383607587,1757028642886,-500.0,0.00016244,2]
[383607588,1757028642896,-500.0,0.00016244,2]
[383607589,1757028642905,-500.0,0.00016244,2]
[383607590,1757028642914,-432.56640123,0.00016255,2]
[383607591,1757028642923,-500.0,0.00016255,2]
[383607592,1757028642933,-500.0,0.00016255,2]
[383607593,1757028642942,-500.0,0.00016256,2]
[383607594,1757028642952,-504.1131352,0.00016271,2]
[383607595,1757028642962,-207.153874,0.00016295,2]
[383607596,1757028642973,-500.0,0.00016319,2]
[383607597,1757028642982,-500.0,0.00016361,2]
[383607598,1757028642991,-296.0,0.00016362,2]
[383607599,1757028643001,-157.0,0.00016362,2]
[383607600,1757028643010,-302.0,0.00016362,2]
[383607601,1757028643019,-302.0,0.00016362,2]
[383607602,1757028643029,-292.0,0.00016362,2]
[383607603,1757028643039,-241.6,0.00016362,2]
[383607604,1757028643049,-157.0,0.00016362,2]
[383607605,1757028643060,-500.0,0.00016362,2]
[383607606,1757028643070,-188.10297854,0.00016438,2]
[383607607,1757028643079,-500.78631096,0.00016438,2]
[383607608,1757028643089,-153.898817,0.00016438,2]
[383607609,1757028643098,-480.0,0.00016466,2]
[383607610,1757028643107,-480.0,0.00016466,2]
[383607611,1757028643117,-480.0,0.00016466,2]
[383607612,1757028643126,-480.0,0.00016466,2]
[383607613,1757028643135,-480.0,0.00016466,2]
[383607614,1757028643145,-480.0,0.00016466,2]
[383607615,1757028643155,-480.0,0.00016466,2]
[383607616,1757028643165,-480.0,0.00016466,2]
[383607617,1757028643174,-480.0,0.00016468,2]
[383607618,1757028643183,-480.0,0.00016468,2]
[383607619,1757028643192,-480.0,0.00016468,2]
[383607620,1757028643201,-480.0,0.00016468,2]
[383607621,1757028643211,-480.0,0.00016468,2]
[383607622,1757028643221,-480.0,0.00016468,2]
[383607623,1757028643231,-985.01,0.00016468,2]
[383607624,1757028643240,-488.69,0.00016468,2]
[383607625,1757028643250,-480.0,0.00016468,2]
[383607626,1757028643261,-480.0,0.00016468,2]
[383607627,1757028643271,-555.45,0.00016468,2]
[383607628,1757028643281,-480.0,0.00016469,2]
[383607629,1757028643291,-442.24477664,0.00016469,2]
[383607630,1757028643301,-648.31,0.00016469,2]
[383607631,1757028643311,-480.0,0.00016469,2]
[383607632,1757028643324,-480.0,0.00016469,2]
[383607633,1757028643334,-573.91,0.00016469,2]
[383607634,1757028643343,-480.0,0.00016469,2]
[383607635,1757028643353,-480.0,0.00016469,2]
[383607636,1757028643363,-480.0,0.00016469,2]
[383607637,1757028643372,-480.0,0.00016469,2]
[383607638,1757028643382,-597.66,0.00016469,2]
[383607639,1757028643391,-264.645396,0.00016469,2]
[383607640,1757028643401,-480.0,0.00016471,2]
[383607641,1757028643411,-480.0,0.00016471,2]
[383607642,1757028643421,-1038.23617541,0.00016472,2]
[383607643,1757028643431,-166.49093637,0.00016475,2]
[383607644,1757028643441,-236.6153923,0.00016636,2]
[383607645,1757028643451,-180.0,0.00016636,2]
[383607646,1757028643460,-500.0,0.00016636,2]
[383607647,1757028643469,-4892.72439906,0.00016642,2]
[383607648,1757028643479,-480.0,0.0001674,2]
[383607649,1757028643488,-480.0,0.0001674,2]
[383607650,1757028643497,-480.0,0.0001674,2]
[383607651,1757028643507,-480.0,0.0001674,2]
[383607652,1757028643517,-480.0,0.0001674,2]
[383607653,1757028643527,-480.0,0.0001674,2]
[383607654,1757028643537,-480.0,0.0001674,2]
[383607655,1757028643547,-480.0,0.0001674,2]
[383607656,1757028643556,-480.0,0.00016742,2]
[383607657,1757028643566,-480.0,0.00016742,2]
[383607658,1757028643575,-161.04887008,0.00016742,2]
[383607659,1757028643585,-303.45,0.00016742,2]
[383607660,1757028643595,-480.0,0.00016742,2]
[383607661,1757028643605,-985.01,0.00016742,2]
[383607662,1757028643615,-488.69,0.00016742,2]
[383607663,1757028643625,-480.0,0.00016742,2]
[383607664,1757028643635,-480.0,0.00016742,2]
[383607665,1757028643645,-555.45,0.00016742,2]
[383607666,1757028643655,-648.31,0.00016743,2]
[383607667,1757028643664,-480.0,0.00016743,2]
[383607668,1757028643674,-427.7807,0.00016743,2]
[383607669,1757028643687,-573.91,0.00016743,2]
[383607670,1757028643697,-480.0,0.00016743,2]
[383607671,1757028643706,-480.0,0.00016743,2]
[383607672,1757028643716,-480.0,0.00016743,2]
[383607673,1757028643726,-597.66,0.00016743,2]
[383607674,1757028643736,-480.0,0.00016745,2]
[383607675,1757028643746,-480.0,0.00016745,2]
[383607676,1757028643757,-343.78262941,0.00016746,2]
[383607677,1757028643767,-1500.0,0.00016768,2]
[383607678,1757028643777,-1500.0,0.00016768,2]
[383607679,1757028643786,-1117.49000262,0.00016786,2]
[383607680,1757028643796,-500.0,0.00016792,2]
[383607681,1757028643805,-1000.0,0.00016792,2]
[383607682,1757028643815,-1000.0,0.00016803,2]
[383607683,1757028643824,-1000.0,0.00016804,2]
[383607684,1757028643834,-1000.0,0.00016867,2]
[383607685,1757028643847,-151.0,0.00016867,2]
[383607686,1757028643858,-500.0,0.0001691,2]
[383607687,1757028643869,-420.0,0.00016989,2]
[383607688,1757028643878,-577.76,0.00017011,3]
[383607689,1757028643892,-480.0,0.00017014,2]
[383607690,1757028643907,-480.0,0.00017014,2]
[383607691,1757028643919,-480.0,0.00017014,2]
[383607692,1757028643930,-603.31964346,0.00017014,2]
[383607693,1757028643941,-480.0,0.00017014,2]
[383607694,1757028643952,-480.0,0.00017014,2]
[383607695,1757028643961,-480.0,0.00017014,2]
[383607696,1757028643972,-480.0,0.00017014,2]
[383607697,1757028643982,-480.0,0.00017016,2]
[383607698,1757028643992,-480.0,0.00017016,2]
[383607699,1757028644001,-481.02,0.00017016,2]
[383607700,1757028644011,-985.01,0.00017016,2]
[383607701,1757028644024,-488.69,0.00017016,2]
[383607702,1757028644043,-480.0,0.00017016,2]
[383607703,1757028644052,-480.0,0.00017016,2]
[383607704,1757028644064,-555.45,0.00017016,2]
[383607705,1757028644074,-648.31,0.00017017,2]
[383607706,1757028644084,-480.0,0.00017017,2]
[383607707,1757028644094,-573.91,0.00017017,2]
[383607708,1757028644103,-480.0,0.00017017,2]
[383607709,1757028644113,-480.0,0.00017017,2]
[383607710,1757028644124,-480.0,0.00017017,2]
[383607711,1757028644135,-597.66,0.00017017,2]
[383607712,1757028644145,-480.0,0.00017019,2]
[383607713,1757028644260,-480.0,0.00017019,2]
[383607714,1757028644270,-500.0,0.00017184,2]
[383607715,1757028644281,-480.0,0.00017288,2]
[383607716,1757028644294,-480.0,0.00017288,2]
[383607717,1757028644306,-480.0,0.00017288,2]
[383607718,1757028644317,-480.0,0.00017288,2]
[383607719,1757028644327,-480.0,0.00017288,2]
[383607720,1757028644339,-480.0,0.00017288,2]
[383607721,1757028644350,-395.6423415,0.0001729,2]
[383607722,1757028644361,-985.01,0.0001729,2]
[383607723,1757028644371,-488.69,0.0001729,2]
[383607724,1757028644381,-480.0,0.0001729,2]
[383607725,1757028644391,-480.0,0.0001729,2]
[383607726,1757028644402,-555.45,0.0001729,2]
[383607727,1757028644412,-648.31,0.00017291,2]
[383607728,1757028644422,-480.0,0.00017291,2]
[383607729,1757028644431,-573.91,0.00017291,2]
[383607730,1757028644441,-480.0,0.00017291,2]
[383607731,1757028644450,-480.0,0.00017291,2]
[383607732,1757028644460,-597.66,0.00017291,2]
[383607733,1757028644469,-499.90823,0.00017293,2]
[383607734,1757028644479,-628.64,0.00017293,2]
[383607735,1757028644488,-500.0,0.00017311,2]
[383607736,1757028644497,-2000.0,0.00017316,2]
[383607737,1757028644507,-1414.66697941,0.00017316,2]
[383607738,1757028644516,-1500.0,0.0001734,2]
[383607740,1757028644526,-1038.23617541,0.00017397,2]
[383607742,1757028644536,-500.0,0.00017414,2]
[383607744,1757028644546,-500.0,0.00017458,2]
[383607745,1757028644557,-352.15252178,0.0001752,2]
[383607746,1757028644567,-480.0,0.00017562,2]
[383607747,1757028644576,-480.0,0.00017562,2]
[383607748,1757028644586,-480.0,0.00017562,2]
[383607749,1757028644598,-480.0,0.00017562,2]
[383607750,1757028644608,-480.0,0.00017562,2]
[383607751,1757028644619,-480.0,0.00017562,2]
[383607752,1757028644629,-985.01,0.00017564,2]
[383607753,1757028644639,-488.69,0.00017564,2]
[383607754,1757028644649,-480.0,0.00017564,2]
[383607755,1757028644660,-480.0,0.00017564,2]
[383607756,1757028644670,-555.45,0.00017564,2]
[383607757,1757028644681,-648.31,0.00017565,2]
[383607758,1757028644691,-480.0,0.00017565,2]
[383607759,1757028644701,-573.91,0.00017565,2]
[383607760,1757028644711,-480.0,0.00017565,2]
[383607761,1757028644721,-480.0,0.00017565,2]
[383607762,1757028644731,-597.66,0.00017565,2]
[383607763,1757028644741,-151.0,0.00017623,2]
[383607764,1757028644751,-500.0,0.00017732,2]
[383607765,1757028644761,-480.0,0.00017836,2]
[383607766,1757028644771,-480.0,0.00017836,2]
[383607767,1757028644781,-480.0,0.00017836,2]
[383607768,1757028644791,-480.0,0.00017836,2]
[383607769,1757028644800,-480.0,0.00017836,2]
[383607770,1757028644811,-480.0,0.00017836,2]
[383607771,1757028644820,-985.01,0.00017838,2]
[383607772,1757028644831,-488.69,0.00017838,2]
[383607773,1757028644840,-480.0,0.00017838,2]
[383607774,1757028644850,-307.18,0.00017838,2]
[383607775,1757028644860,-555.45,0.00017838,2]
[383607776,1757028644870,-648.31,0.00017839,2]
[383607777,1757028644879,-480.0,0.00017839,2]
[383607778,1757028644889,-573.91,0.00017839,2]
[383607779,1757028644899,-480.0,0.00017839,2]
[383607780,1757028644909,-480.0,0.00017839,2]
[383607781,1757028644920,-597.66,0.00017839,2]
[383607782,1757028644930,-160.0,0.00017854,2]
[383607783,1757028644940,-2500.0,0.00017864,2]
[383607784,1757028644951,-2000.0,0.00017888,2]
[383607785,1757028644960,-500.0,0.00018006,2]
[383607786,1757028644970,-480.0,0.0001811,2]
[383607787,1757028644979,-480.0,0.0001811,2]
[383607788,1757028644988,-480.0,0.0001811,2]
[383607789,1757028644998,-480.0,0.0001811,2]
[383607790,1757028645008,-480.0,0.0001811,2]
[383607791,1757028645018,-480.0,0.0001811,2]
[383607792,1757028645028,-985.01,0.00018112,2]
[383607793,1757028645038,-488.69,0.00018112,2]
[383607794,1757028645047,-480.0,0.00018112,2]
[383607795,1757028645059,-555.45,0.00018112,2]
[383607796,1757028645068,-648.31,0.00018113,2]
[383607797,1757028645078,-480.0,0.00018113,2]
[383607798,1757028645088,-573.91,0.00018113,2]
[383607799,1757028645098,-353.13,0.00018113,2]
[383607800,1757028645108,-480.0,0.00018113,2]
[383607801,1757028645118,-597.66,0.00018113,2]
[383607802,1757028645127,-500.0,0.00018177,2]
[383607803,1757028645138,-500.0,0.0001828,2]
[383607804,1757028645148,-1038.23617541,0.00018323,2]
[383607805,1757028645159,-492.2,0.00018384,2]
[383607806,1757028645169,-480.0,0.00018384,2]
[383607807,1757028645179,-480.0,0.00018384,2]
[383607808,1757028645191,-480.0,0.00018384,2]
[383607809,1757028645202,-480.0,0.00018384,2]
[383607810,1757028645215,-480.0,0.00018384,2]
[383607811,1757028645226,-985.01,0.00018386,2]
[383607812,1757028645238,-488.69,0.00018386,2]
[383607813,1757028645247,-480.0,0.00018386,2]
[383607814,1757028645258,-555.45,0.00018386,2]
[383607815,1757028645268,-648.31,0.00018387,2]
[383607816,1757028645277,-480.0,0.00018387,2]
[383607817,1757028645287,-573.91,0.00018387,2]
[383607818,1757028645297,-480.0,0.00018387,2]
[383607819,1757028645308,-597.66,0.00018387,2]
[383607820,1757028645319,-260.0,0.00018402,2]
[383607821,1757028645329,-1550.46260552,0.00018412,2]
[383607822,1757028645338,-2500.0,0.00018436,2]
[383607823,1757028645348,-500.0,0.00018554,2]
[383607824,1757028645358,-587.0,0.00018583,2]
[383607825,1757028645367,-480.0,0.00018658,2]
[383607826,1757028645376,-480.0,0.00018658,2]
[383607827,1757028645386,-480.0,0.00018658,2]
[383607828,1757028645395,-480.0,0.00018658,2]